bitfinex-derivatives/quotes_SOLF0:USTF0_20250323
["timestamp","ask_amount","ask_price","bid_price","bid_amount"]
[1742708957204,0.0579984,130.46,130.44,43.07660697]
[1742708958004,0.0579984,130.46,130.44,35.40890697]
[1742708958209,7.7245984,130.46,130.44,35.40890697]
[1742708958697,7.7245984,130.46,130.44,43.07650697]
[1742708958895,0.0579984,130.46,130.45,7.36890697]
[1742708960501,0.0579984,130.46,130.45,15.03600697]
[1742708973119,0.0579984,130.46,130.45,7.36890697]
[1742708975320,0.0579984,130.46,130.44,35.7074]
[1742708975321,7.7245984,130.46,130.44,43.07630697]
[1742708975624,7.7245984,130.46,130.44,35.40890697]
[1742708976811,0.0579984,130.46,130.44,43.07650697]
[1742708979318,0.0579984,130.46,130.45,7.6671]
[1742708979522,0.0579984,130.46,130.44,35.40890697]
[1742708980022,0.0579984,130.46,130.44,43.07610697]
[1742708980223,0.0579984,130.46,130.44,35.40890697]
[1742708980426,0.0579984,130.46,130.45,7.6671]
[1742708980818,0.0579984,130.46,130.44,35.40890697]
[1742708981622,0.0579984,130.46,130.44,43.07640697]
[1742708981925,0.0579984,130.46,130.44,28.04]
[1742708982322,7.7245984,130.46,130.44,28.04]
[1742708983522,0.0579984,130.46,130.44,35.7077]
[1742708985328,0.0579984,130.46,130.45,15.03600697]
[1742708991443,0.0579984,130.46,130.45,7.6671]
[1742708991742,0.0579984,130.46,130.44,43.07640697]
[1742708993341,0.0579984,130.46,130.44,15.03640697]
[1742708994140,0.0579984,130.46,130.45,7.6671]
[1742708999552,0.0579984,130.46,130.45,15.03600697]
[1742709001746,0.0579984,130.46,130.44,7.6675]
[1742709003739,7.7245984,130.46,130.44,7.6675]
[1742709003943,7.7245984,130.46,130.43,43.53219383]
[1742709004148,7.7245984,130.46,130.43,36.16328686]
[1742709004553,7.7245984,130.46,130.43,7.72328686]
[1742709009357,15.03610697,130.45,130.43,0.05508686]
[1742709009753,7.6672,130.45,130.43,0.05508686]
[1742709014259,7.42690537,130.46,130.43,0.05508686]
[1742709014754,7.6675,130.45,130.43,0.05508686]
[1742709017767,15.03660697,130.44,130.43,0.05508686]
[1742709019260,43.11660697,130.44,130.43,0.05508686]
[1742709019455,7.6696,130.41,130.39,28.08]
[1742709020560,7.72385801,130.41,130.39,28.1362431]
[1742709021367,0.05425801,130.41,130.39,28.1362431]
[1742709021564,0.05425801,130.41,130.39,35.8067431]
[1742709021864,7.72375801,130.41,130.39,0.0562431]
[1742709022669,0.05425801,130.41,130.39,0.0562431]
[1742709023668,0.05425801,130.41,130.39,7.7265431]
[1742709024468,0.05425801,130.41,130.4,7.67]
[1742709024669,0.05425801,130.41,130.39,0.0562431]
[1742709025070,0.05425801,130.41,130.39,7.7264431]
[1742709025470,0.05425801,130.41,130.39,0.0562431]
[1742709025767,0.05425801,130.41,130.39,7.7266431]
[1742709025974,0.05425801,130.41,130.39,0.0562431]
[1742709028071,0.05425801,130.41,130.39,7.7265431]
[1742709028270,0.05425801,130.41,130.39,0.0562431]
[1742709029869,0.05425801,130.41,130.39,7.7268431]
[1742709031477,7.72375801,130.41,130.39,0.0562431]
[1742709032075,0.05425801,130.41,130.39,0.0562431]
[1742709032676,7.72375801,130.41,130.39,0.0562431]
[1742709041380,0.05425801,130.41,130.39,7.7267431]
[1742709047593,0.05425801,130.41,130.4,7.67]
[1742709047888,0.05425801,130.41,130.4,15.03890697]
[1742709057799,42.46428487,130.47,130.4,7.36890697]
[1742709058103,42.46428487,130.47,130.44,7.36890697]
[1742709058801,42.46428487,130.47,130.45,7.6668]
[1742709059103,42.52068021,130.47,130.45,7.6668]
[1742709059507,10.72909056,130.47,130.45,7.6668]
[1742709061205,10.72909056,130.47,130.46,7.6665]
[1742709061704,0.05639534,130.47,130.46,7.6665]
[1742709065510,0.05639534,130.47,130.46,15.03540697]
[1742709068211,17.11870697,130.52,130.46,7.36890697]
[1742709068410,17.11870697,130.52,130.48,7.36890697]
[1742709069203,7.6632,130.52,130.49,7.36890697]
[1742709069406,7.6632,130.52,130.49,7.42026043]
[1742709069709,7.6632,130.52,130.49,15.08496043]
[1742709069911,7.6632,130.52,130.49,7.71605346]
[1742709071212,7.6632,130.52,130.49,0.05135346]
[1742709072518,7.6637,130.51,130.49,0.05135346]
[1742709073217,7.6642,130.5,130.49,0.05135346]
[1742709077317,7.6639,130.51,130.49,0.05135346]
[1742709080116,7.6633,130.52,130.49,7.71605346]
[1742709081111,7.6636,130.51,130.49,7.71605346]
[1742709090420,7.6636,130.51,130.49,0.05135346]
[1742709093026,7.6642,130.5,130.49,0.05135346]
[1742709093225,15.03310697,130.5,130.49,0.05135346]
[1742709093420,42.25310697,130.5,130.49,0.05135346]
[1742709093622,7.6661,130.47,130.44,42.25630697]
[1742709094423,7.36890697,130.49,130.45,7.36890697]
[1742709094628,34.58890697,130.5,130.46,7.36890697]
[1742709094829,0.05837432,130.48,130.46,7.42036126]
[1742709095033,0.05837432,130.48,130.46,15.08656126]
[1742709097525,7.72377432,130.48,130.46,0.05145429]
[1742709101931,7.72377432,130.48,130.46,7.71795429]
[1742709101932,0.05837432,130.48,130.46,7.71795429]
[1742709102528,0.05837432,130.48,130.46,0.05145429]
[1742709103331,7.72387432,130.48,130.46,0.05145429]
[1742709106534,7.6659,130.47,130.46,0.05145429]
[1742709106937,15.03480697,130.47,130.46,0.05145429]
[1742709109741,7.6659,130.47,130.46,0.05145429]
[1742709110939,7.72407432,130.48,130.46,0.05145429]
[1742709111139,0.05837432,130.48,130.46,0.05145429]
[1742709112444,7.72377432,130.48,130.46,0.05145429]
[1742709119743,7.6659,130.47,130.46,0.05145429]
[1742709120141,15.03480697,130.47,130.46,0.05145429]
[1742709120449,34.40890697,130.47,130.4,260.36890697]
[1742709120643,7.36890697,130.45,130.4,287.40890697]
[1742709120841,7.6692,130.42,130.4,280.04]
[1742709121543,7.7260902,130.42,130.4,253.05704065]
[1742709127144,0.0568902,130.42,130.4,253.05704065]
[1742709130556,0.0568902,130.42,130.4,0.05704065]
[1742709131560,7.7257902,130.42,130.4,0.05704065]
[1742709132453,7.6695,130.41,130.4,0.05704065]
[1742709134961,15.03840697,130.41,130.4,0.05704065]
[1742709135762,42.07840697,130.41,130.4,0.05704065]
[1742709138466,34.40890697,130.41,130.4,0.05704065]
[1742709139365,42.07840697,130.41,130.4,0.05704065]
[1742709147377,7.6701,130.4,130.36,34.42890697]
[1742709147577,15.03900697,130.4,130.36,34.42890697]
[1742709148276,15.03900697,130.4,130.37,7.6717]
[1742709148466,0.05604304,130.39,130.37,7.73016981]
[1742709148670,0.05604304,130.39,130.37,0.05846981]
[1742709149377,7.72684304,130.39,130.37,0.05846981]
[1742709149675,0.05604304,130.39,130.37,0.05846981]
[1742709152987,7.72674304,130.39,130.37,0.05846981]
[1742709155187,0.05604304,130.39,130.37,0.05846981]
[1742709156687,0.05604304,130.39,130.37,7.73016981]
[1742709165393,0.05604304,130.39,130.38,7.6712]
[1742709173900,0.05604304,130.39,130.37,7.73006981]
[1742709174507,7.36890697,130.38,130.32,34.42890697]
[1742709174805,7.36890697,130.37,130.33,27.06]
[1742709175000,7.36890697,130.37,130.34,7.6731]
[1742709175202,7.36890697,130.37,130.33,27.06]
[1742709175702,0.05116538,130.36,130.34,7.72306433]
[1742709176002,0.05116538,130.36,130.34,0.04956433]
[1742709177207,0.05116538,130.36,130.35,7.673]
[1742709177601,0.05116538,130.36,130.34,0.04956433]
[1742709178603,0.05116538,130.36,130.34,7.72286433]
[1742709179706,0.05116538,130.36,130.35,7.673]
[1742709181207,0.05116538,130.36,130.34,7.72286433]
[1742709181809,0.05116538,130.36,130.34,0.04956433]
[1742709183407,0.05116538,130.36,130.35,7.673]
[1742709188511,0.05116538,130.36,130.34,7.72296433]
[1742709191522,15.09247235,130.36,130.34,0.04956433]
[1742709191715,7.36890697,130.35,130.34,0.04956433]
[1742709191914,7.6745,130.33,130.29,7.6765]
[1742709192114,7.36890697,130.32,130.29,7.6765]
[1742709192413,7.36890697,130.31,130.27,34.42890697]
[1742709192616,7.36890697,130.32,130.28,7.6766]
[1742709192919,0.05254258,130.31,130.29,0.05360232]
[1742709197522,7.36890697,130.3,130.29,0.05360232]
[1742709198622,15.04480697,130.3,130.29,0.05360232]
[1742709199321,7.36890697,130.3,130.29,0.05360232]
[1742709205730,7.42144955,130.31,130.29,0.05360232]
[1742709206031,0.05254258,130.31,130.29,7.42250929]
[1742709206426,0.05254258,130.31,130.3,7.6759]
[1742709218737,7.42144955,130.31,130.29,0.05360232]
[1742709219847,15.09714955,130.31,130.29,0.05360232]
[1742709223949,7.42144955,130.31,130.29,7.73010232]
[1742709224948,0.05254258,130.31,130.29,7.73010232]
[1742709229153,0.05254258,130.31,130.29,0.05360232]
[1742709231454,0.05254258,130.31,130.29,7.73010232]
[1742709233650,0.05254258,130.31,130.29,0.05360232]
[1742709234552,0.05254258,130.31,130.3,7.6759]
[1742709236052,0.05254258,130.31,130.29,7.72990232]
[1742709236852,15.09684955,130.31,130.29,0.05360232]
[1742709237053,7.42144955,130.31,130.29,0.05360232]
[1742709237656,15.09724955,130.31,130.29,0.05360232]
[1742709238957,0.05254258,130.31,130.29,7.73000232]
[1742709246958,0.05254258,130.31,130.3,7.6759]
[1742709254066,42.46428487,130.36,130.3,34.42890697]
[1742709254254,42.46428487,130.36,130.34,7.36890697]
[1742709254455,42.46428487,130.36,130.34,34.42890697]
[1742709255262,42.52288466,130.36,130.34,34.48587929]
[1742709255561,42.52288466,130.36,130.35,7.673]
[1742709256863,0.05859979,130.36,130.35,7.673]
[1742709257562,0.05859979,130.36,130.35,15.04190697]
[1742709265369,7.36890697,130.42,130.35,7.36890697]
[1742709265575,7.36890697,130.42,130.37,7.36890697]
[1742709265771,7.36890697,130.42,130.37,34.40890697]
[1742709266575,0.05789664,130.41,130.38,0.05348865]
[1742709267375,0.05789664,130.41,130.39,7.6704]
[1742709267575,0.05789664,130.41,130.38,0.05348865]
[1742709268580,0.05789664,130.41,130.39,7.36890697]
[1742709269481,0.05789664,130.41,130.4,7.67]
[1742709269683,0.05789664,130.41,130.4,42.07890697]
[1742709272584,0.05789664,130.41,130.4,27.04]
[1742709272781,0.05789664,130.41,130.39,7.36890697]
[1742709274575,0.05789664,130.41,130.39,15.03950697]
[1742709280090,0.05789664,130.41,130.4,7.67]
[1742709280288,0.05789664,130.41,130.4,15.03890697]
[1742709284791,0.05789664,130.41,130.4,7.67]
[1742709285395,0.05789664,130.41,130.39,15.03930697]
[1742709286190,0.05789664,130.41,130.39,7.6704]
[1742709286395,0.05789664,130.41,130.38,34.76448865]
[1742709287493,7.72739664,130.41,130.38,34.76448865]
[1742709287693,7.72739664,130.41,130.38,7.72448865]
[1742709287896,7.72739664,130.41,130.38,34.76448865]
[1742709288597,0.05789664,130.41,130.39,7.6706]
[1742709289499,7.72739664,130.41,130.39,7.6706]
[1742709289699,7.72739664,130.41,130.38,34.76448865]
[1742709293101,7.72739664,130.41,130.38,42.13339562]
[1742709293298,0.05789664,130.41,130.39,7.6705]
[1742709295299,0.05789664,130.41,130.4,7.67]
[1742709296000,0.05789664,130.41,130.39,7.6704]
[1742709305906,0.05789664,130.41,130.4,7.67]
[1742709309505,0.05789664,130.41,130.39,7.6703]
[1742709317611,0.05789664,130.41,130.4,15.03890697]
[1742709324812,0.05789664,130.41,130.4,7.67]
[1742709352437,0.05789664,130.41,130.39,7.36890697]
[1742709352631,0.05789664,130.41,130.38,34.46239562]
[1742709353039,7.72769664,130.41,130.39,7.6705]
[1742709354338,0.05789664,130.41,130.39,7.6705]
[1742709354538,0.05789664,130.41,130.4,7.67]
[1742709362636,0.05789664,130.41,130.4,15.03890697]
[1742709372348,7.36890697,130.46,130.43,7.668]
[1742709373349,15.08605952,130.46,130.43,7.72472346]
[1742709380057,7.41925952,130.46,130.44,7.6676]
[1742709381057,0.05035255,130.46,130.44,7.6676]
[1742709381657,7.71715255,130.46,130.44,7.6676]
[1742709382456,7.71715255,130.46,130.43,7.72472346]
[1742709383156,7.6675,130.45,130.43,0.05672346]
[1742709383551,15.03640697,130.45,130.43,0.05672346]
[1742709385556,15.03640697,130.45,130.43,7.72492346]
[1742709385758,7.6675,130.45,130.43,7.72492346]
[1742709385960,15.08605952,130.46,130.43,7.72492346]
[1742709387763,0.05035255,130.46,130.44,7.6674]
[1742709389762,0.05035255,130.46,130.43,7.72482346]
[1742709389763,7.71685255,130.46,130.43,7.72482346]
[1742709391065,7.6671,130.45,130.43,7.72482346]
[1742709391664,15.08595952,130.46,130.43,7.72482346]
[1742709392577,7.41925952,130.46,130.43,0.05672346]
[1742709392758,7.36890697,130.44,130.36,7.36890697]
[1742709392962,27.0,130.45,130.36,7.36890697]
[1742709392963,7.36890697,130.4,130.36,27.0]
[1742709393158,7.6712,130.39,130.35,42.04160697]
[1742709393358,7.36890697,130.4,130.35,42.04160697]
[1742709393860,7.6707,130.39,130.36,0.05786667]
[1742709394068,7.7227364,130.39,130.36,0.05786667]
[1742709394466,0.0520364,130.39,130.36,7.42677364]
[1742709394667,0.0520364,130.39,130.37,7.36890697]
[1742709394867,0.0520364,130.39,130.38,7.36890697]
[1742709395167,0.0520364,130.39,130.38,15.04010697]
[1742709398864,0.0520364,130.39,130.37,27.0]
[1742709399472,0.0520364,130.39,130.36,0.05786667]
[1742709399975,7.7229364,130.39,130.36,7.72996667]
[1742709401672,7.7229364,130.39,130.36,15.09887364]
[1742709404671,0.0520364,130.39,130.36,15.09887364]
[1742709405173,0.0520364,130.39,130.37,7.6718]
[1742709405970,0.0520364,130.39,130.36,7.42677364]
[1742709406180,0.0520364,130.39,130.36,15.09887364]
[1742709407075,0.0520364,130.39,130.37,7.6717]
[1742709407273,0.0520364,130.39,130.36,7.42677364]
[1742709407874,0.0520364,130.39,130.37,7.6718]
[1742709408478,0.0520364,130.39,130.38,7.6712]
[1742709408670,0.0520364,130.39,130.38,15.04010697]
[1742709411866,0.0520364,130.39,130.38,42.06010697]
[1742709413783,34.38890697,130.46,130.43,7.6683]
[1742709414877,34.4440361,130.46,130.43,7.72587342]
[1742709415378,42.1108361,130.46,130.43,7.72587342]
[1742709415578,42.1108361,130.46,130.44,7.6676]
[1742709415579,7.4240361,130.46,130.44,7.6676]
[1742709415875,27.07512913,130.46,130.44,7.6676]
[1742709417977,0.05512913,130.46,130.44,7.6676]
[1742709418675,0.05512913,130.46,130.45,7.6671]
[1742709419175,0.05512913,130.46,130.45,15.03600697]
[1742709425279,46.11570697,130.52,130.47,7.6657]
[1742709425481,38.45250697,130.52,130.47,15.03460697]
[1742709426483,7.71438326,130.51,130.48,0.05711249]
[1742709426686,0.05068326,130.51,130.48,0.05711249]
[1742709427584,7.6642,130.5,130.48,0.05711249]
[1742709434190,7.6648,130.49,130.48,0.05711249]
[1742709439294,7.6644,130.5,130.48,0.05711249]
[1742709442198,7.71448326,130.51,130.48,7.72211249]
[1742709442694,15.08339023,130.51,130.48,7.72211249]
[1742709445496,7.71448326,130.51,130.49,7.6647]
[1742709446188,7.71448326,130.51,130.48,7.72221249]
[1742709446392,15.08339023,130.51,130.48,7.72221249]
[1742709452097,7.6642,130.5,130.48,0.05711249]
[1742709452902,15.08349023,130.51,130.48,0.05711249]
[1742709453103,7.41959023,130.51,130.48,7.72211249]
[1742709453507,7.41959023,130.51,130.48,0.05711249]
[1742709454601,7.41959023,130.51,130.49,7.6647]
[1742709454903,0.05068326,130.51,130.49,7.6647]
[1742709456006,0.05068326,130.51,130.48,7.72211249]
[1742709456007,7.71428326,130.51,130.48,7.72211249]
[1742709460310,7.6642,130.5,130.48,7.72211249]
[1742709460809,7.6642,130.5,130.48,0.05711249]
[1742709463213,7.6648,130.49,130.48,0.05711249]
[1742709463408,7.36890697,130.49,130.43,252.9]
[1742709463711,7.36890697,130.48,130.44,26.98]
[1742709463903,15.03520697,130.47,130.44,34.6474]
[1742709464510,15.08405948,130.47,130.44,34.69777445]
[1742709466211,7.41775948,130.47,130.45,7.667]
[1742709466411,0.04885251,130.47,130.45,7.667]
[1742709467815,0.04885251,130.47,130.46,7.6665]
[1742709469615,0.04885251,130.47,130.46,15.03540697]
[1742709471415,0.04885251,130.47,130.45,7.6669]
[1742709474018,0.04885251,130.47,130.44,42.06668142]
[1742709476223,7.71485251,130.47,130.44,42.06668142]
[1742709476419,7.71485251,130.47,130.44,34.69777445]
[1742709477627,7.71485251,130.47,130.44,7.71777445]
[1742709478627,7.6665,130.46,130.44,0.05037445]
[1742709478821,7.36890697,130.46,130.44,0.05037445]
[1742709480526,7.6671,130.45,130.44,0.05037445]
[1742709480930,15.03600697,130.45,130.44,0.05037445]
[1742709481920,42.01600697,130.45,130.44,0.05037445]
[1742709483430,34.34890697,130.45,130.44,0.05037445]
[1742709483934,26.98,130.45,130.44,0.05037445]
[1742709484528,26.98,130.45,130.44,7.71807445]
[1742709485936,46.20805948,130.47,130.44,7.71807445]
[1742709486133,7.36890697,130.46,130.44,7.71807445]
[1742709489935,15.03550697,130.46,130.44,0.05037445]
[1742709497040,15.03600697,130.45,130.44,0.05037445]
[1742709497240,7.36890697,130.45,130.37,26.98]
[1742709497432,7.36890697,130.41,130.37,26.98]
[1742709497639,15.03870697,130.41,130.38,7.671]
[1742709498438,15.09116087,130.41,130.38,7.72069553]
[1742709498942,7.7222539,130.41,130.38,7.72069553]
[1742709499134,0.0524539,130.41,130.4,7.67]
[1742709531079,0.0524539,130.41,130.38,7.4186025]
[1742709531280,0.0524539,130.41,130.38,0.04969553]
[1742709532173,7.7221539,130.41,130.38,7.72059553]
[1742709533575,0.0524539,130.41,130.39,7.6706]
[1742709534277,0.0524539,130.41,130.4,7.67]
[1742709539383,0.0524539,130.41,130.38,0.04969553]
[1742709539689,7.36890697,130.4,130.38,0.04969553]
[1742709539881,15.03950697,130.39,130.38,0.04969553]
[1742709542285,15.03920697,130.4,130.38,0.04969553]
[1742709542490,0.0524539,130.41,130.39,7.36890697]
[1742709543487,0.0524539,130.41,130.4,7.67]
[1742709555297,0.0524539,130.41,130.4,15.03890697]
[1742709563709,0.0524539,130.41,130.4,7.67]
[1742709566214,0.0524539,130.41,130.4,15.03890697]
[1742709568113,0.0524539,130.41,130.4,7.67]
[1742709568614,0.0524539,130.41,130.38,34.3986025]
[1742709568811,7.36890697,130.4,130.38,0.04969553]
[1742709569115,0.0524539,130.41,130.38,0.04969553]
[1742709569116,7.36890697,130.39,130.38,0.04969553]
[1742709570216,15.03950697,130.39,130.38,0.04969553]
[1742709592341,7.36890697,130.4,130.38,7.72089553]
[1742709592646,0.0524539,130.41,130.38,7.4186025]
[1742709592836,0.0524539,130.41,130.38,34.3786025]
[1742709593039,0.0524539,130.41,130.39,7.6703]
[1742709595441,0.0524539,130.41,130.4,7.67]
[1742709597448,0.0524539,130.41,130.4,15.03890697]
[1742709611857,7.36890697,130.46,130.4,7.36890697]
[1742709612049,7.36890697,130.46,130.42,7.36890697]
[1742709612452,7.36890697,130.46,130.41,26.96]
[1742709612453,7.6661,130.47,130.44,7.6676]
[1742709613153,7.71492358,130.47,130.44,7.718999]
[1742709613353,0.04882358,130.47,130.45,7.6671]
[1742709616253,7.71472358,130.47,130.44,7.718799]
[1742709617056,0.04882358,130.47,130.44,7.718799]
[1742709617258,0.04882358,130.47,130.45,7.6669]
[1742709617961,7.71482358,130.47,130.44,7.718799]
[1742709620069,0.04882358,130.47,130.45,7.6671]
[1742709622870,0.04882358,130.47,130.46,7.6665]
[1742709624967,0.04882358,130.47,130.46,15.03540697]
[1742709625676,15.03220697,130.52,130.49,7.6645]
[1742709626777,15.08997214,130.52,130.49,7.71452883]
[1742709628075,7.6636,130.51,130.49,0.05002883]
[1742709631175,15.03310697,130.5,130.49,0.05002883]
[1742709631580,41.97310697,130.5,130.49,0.05002883]
[1742709633684,7.6663,130.47,130.44,26.94]
[1742709633982,7.36890697,130.48,130.44,26.94]
[1742709634280,7.6667,130.46,130.44,26.94]
[1742709634781,7.72019041,130.46,130.44,26.99347819]
[1742709635183,0.05349041,130.46,130.45,7.36890697]
[1742709635779,0.05349041,130.46,130.45,15.03600697]
[1742709636375,0.05349041,130.46,130.45,7.36890697]
[1742709636982,0.05349041,130.46,130.44,34.36238516]
[1742709637687,0.05349041,130.46,130.44,15.08988516]
[1742709637879,0.05349041,130.46,130.44,42.02988516]
[1742709639190,0.05349041,130.46,130.44,34.36238516]
[1742709639384,0.05349041,130.46,130.44,26.99347819]
[1742709639891,0.05349041,130.46,130.44,34.66107819]
[1742709640692,7.42239738,130.46,130.44,0.05347819]
[1742709640895,7.36890697,130.45,130.44,0.05347819]
[1742709641192,15.03600697,130.45,130.44,0.05347819]
[1742709646494,41.97600697,130.45,130.44,0.05347819]
[1742709649395,41.97600697,130.45,130.39,253.02]
[1742709649396,7.6699,130.41,130.39,26.94]
[1742709650401,7.6691,130.42,130.39,34.6106]
[1742709650706,0.05138709,130.41,130.39,34.66168245]
[1742709651607,0.05138709,130.41,130.39,7.72168245]
[1742709653405,7.72098709,130.41,130.39,0.05108245]
[1742709653601,7.36890697,130.4,130.29,253.02]
[1742709653803,7.36890697,130.38,130.33,7.36890697]
[1742709654003,7.36890697,130.36,130.31,26.94]
[1742709654306,7.36890697,130.37,130.32,7.36890697]
[1742709654605,7.6714,130.38,130.34,7.36890697]
[1742709654803,0.04951193,130.36,130.35,7.36890697]
[1742709655314,0.04951193,130.36,130.35,15.04170697]
[1742709655808,11.35110697,130.42,130.35,7.36890697]
[1742709656111,26.94,130.41,130.37,7.36890697]
[1742709656308,34.30890697,130.41,130.36,15.04120697]
[1742709656905,0.04872499,130.4,130.37,0.05268951]
[1742709657514,0.04872499,130.4,130.37,7.72448951]
[1742709659416,0.04872499,130.4,130.38,7.6711]
[1742709660015,0.04872499,130.4,130.37,7.72428951]
[1742709660816,0.04872499,130.4,130.38,7.6711]
[1742709661220,0.04872499,130.4,130.37,34.38159648]
[1742709661412,0.04872499,130.4,130.38,7.36890697]
[1742709662719,0.04872499,130.4,130.39,7.6706]
[1742709662922,0.04872499,130.4,130.39,15.03950697]
[1742709665219,7.36890697,130.45,130.39,7.36890697]
[1742709665521,7.36890697,130.45,130.41,7.36890697]
[1742709665719,7.36890697,130.45,130.41,26.94]
[1742709665925,7.6668,130.46,130.41,26.94]
[1742709665926,7.36890697,130.44,130.42,7.6685]
[1742709666127,7.36890697,130.43,130.39,26.94]
[1742709666327,28.8824,130.47,130.4,7.67]
[1742709666328,7.36890697,130.42,130.4,7.67]
[1742709666622,7.42187444,130.42,130.4,0.04889608]
[1742709667022,7.36890697,130.41,130.4,0.04889608]
[1742709669818,7.42187444,130.42,130.4,0.04889608]
[1742709670524,15.09077444,130.42,130.4,0.04889608]
[1742709670827,7.42187444,130.42,130.4,0.04889608]
[1742709671031,0.05296747,130.42,130.4,0.04889608]
[1742709674635,7.72186747,130.42,130.4,0.04889608]
[1742709676331,7.6695,130.41,130.4,0.04889608]
[1742709677337,15.03840697,130.41,130.4,0.04889608]
[1742709677532,7.6714,130.38,130.36,26.94]
[1742709677737,7.36890697,130.38,130.36,26.94]
[1742709678538,7.6718,130.37,130.36,26.99231501]
[1742709678943,7.42737352,130.38,130.36,26.99231501]
[1742709679136,0.05846655,130.38,130.36,26.99231501]
[1742709679538,0.05846655,130.38,130.36,34.36122198]
[1742709679940,0.05846655,130.38,130.37,7.6718]
[1742709681145,12.70719522,130.44,130.37,7.36890697]
[1742709681344,7.36890697,130.43,130.38,7.36890697]
[1742709681645,7.36890697,130.43,130.39,34.30890697]
[1742709681839,7.36890697,130.43,130.4,7.6695]
[1742709682335,7.42378045,130.43,130.4,7.72839414]
[1742709683445,7.42378045,130.43,130.41,7.6693]
[1742709684237,0.05487348,130.43,130.41,7.6693]
[1742709684440,0.05487348,130.43,130.4,0.05889414]
[1742709684441,0.05487348,130.43,130.42,7.6689]
[1742709691148,0.05487348,130.43,130.41,7.6692]
[1742709693748,15.09208045,130.43,130.4,0.05889414]
[1742709694257,7.42378045,130.43,130.4,0.05889414]
[1742709694947,0.05487348,130.43,130.4,0.05889414]
[1742709695455,0.05487348,130.43,130.41,7.6693]
[1742709695656,0.05487348,130.43,130.4,7.42780111]
[1742709696449,0.05487348,130.43,130.42,7.6689]
[1742709702463,7.36890697,130.47,130.45,7.6666]
[1742709702666,7.36890697,130.47,130.42,34.30890697]
[1742709703058,7.36890697,130.48,130.46,7.6662]
[1742709703357,7.36890697,130.48,130.43,7.36890697]
[1742709703663,7.36890697,130.47,130.46,7.7197285]
[1742709704367,7.36890697,130.47,130.46,0.0532285]
[1742709704765,7.42320482,130.48,130.46,0.0532285]
[1742709706066,15.08860482,130.48,130.46,0.0532285]
[1742709706467,7.36890697,130.47,130.46,0.0532285]
[1742709706662,15.03480697,130.47,130.46,0.0532285]
[1742709712466,34.30890697,130.47,130.36,254.9956]
[1742709712768,7.36890697,130.42,130.37,34.30890697]
[1742709712976,15.03810697,130.42,130.38,7.6708]
[1742709713475,15.03810697,130.42,130.37,34.30890697]
[1742709713673,7.71788521,130.41,130.39,0.05185553]
[1742709715573,7.67,130.4,130.39,0.05185553]
[1742709715768,0.04838521,130.41,130.39,0.05185553]
[1742709716368,7.71818521,130.41,130.39,0.05185553]
[1742709720476,0.04838521,130.41,130.39,0.05185553]
[1742709720678,0.04838521,130.41,130.39,7.72245553]
[1742709721274,0.04838521,130.41,130.39,34.66245553]
[1742709724285,0.04838521,130.41,130.4,7.67]
[1742709727681,0.04838521,130.41,130.4,15.03890697]
[1742709728978,0.04838521,130.41,130.4,7.67]
[1742709749893,0.04838521,130.41,130.39,34.66215553]
[1742709750096,0.04838521,130.41,130.39,26.99185553]
[1742709750888,7.71818521,130.41,130.39,26.99185553]
[1742709751507,0.04838521,130.41,130.39,26.99185553]
[1742709751797,7.41729218,130.41,130.39,0.05185553]
[1742709752001,7.36890697,130.4,130.39,0.05185553]
[1742709753707,7.41729218,130.41,130.39,7.72245553]
[1742709754106,0.04838521,130.41,130.39,0.05185553]
[1742709754314,0.04838521,130.41,130.4,7.67]
[1742709760514,0.04838521,130.41,130.4,41.97890697]
[1742709761414,0.04838521,130.41,130.4,26.94]
[1742709768716,0.04838521,130.41,130.4,34.61]
[1742709769225,0.04838521,130.41,130.4,26.94]
[1742709770319,0.04838521,130.41,130.4,34.61]
[1742709776226,0.04838521,130.41,130.39,7.72205553]
[1742709776525,0.04838521,130.41,130.39,0.05185553]
[1742709776719,0.04838521,130.41,130.4,7.67]
[1742709777321,0.04838521,130.41,130.4,15.03890697]
[1742709777728,0.04838521,130.41,130.4,7.67]
[1742709780129,0.04838521,130.41,130.39,34.66235553]
[1742709780430,0.04838521,130.41,130.39,26.99185553]
[1742709780729,0.04838521,130.41,130.39,34.66215553]
[1742709783227,0.04838521,130.41,130.4,7.67]
[1742709799244,0.04838521,130.41,130.39,34.66225553]
[1742709806153,15.08679218,130.41,130.39,0.05185553]
[1742709807055,7.67,130.4,130.39,0.05185553]
[1742709807254,0.04838521,130.41,130.39,0.05185553]
[1742709807954,0.04838521,130.41,130.39,7.72215553]
[1742709809056,0.04838521,130.41,130.39,0.05185553]
[1742709809250,7.36890697,130.4,130.39,0.05185553]
[1742709810554,15.08709218,130.41,130.39,0.05185553]
[1742709815358,7.41729218,130.41,130.39,0.05185553]
[1742709816061,15.03890697,130.4,130.39,0.05185553]